fUSD/lending_fUSD_20241221
["ID","MTS","AMOUNT","RATE_DAILY","PERIOD"]
[346210584,1734775904204,-150.0,0.0002078,2]
[346210585,1734775904213,-1500.0,0.00020781,2]
[346210586,1734775904224,-150.0,0.00020782,2]
[346210587,1734775904234,-150.0,0.00020783,2]
[346210588,1734775904243,-1500.0,0.00020786,2]
[346210589,1734775904253,-150.0,0.00020786,2]
[346210590,1734775904262,-627.35553501,0.00020788,2]
[346210591,1734775904273,-150.0,0.00020788,2]
[346210592,1734775904285,-1703.59,0.00020789,2]
[346210593,1734775904294,-1703.59,0.00020789,2]
[346210594,1734775904304,-1703.59,0.00020789,2]
[346210595,1734775904314,-1703.59,0.00020789,2]
[346210596,1734775904323,-1703.78028236,0.00020789,2]
[346210597,1734775904333,-151.0,0.0002079,2]
[346210598,1734775904342,-151.0,0.0002079,2]
[346210599,1734775904352,-151.0,0.0002079,2]
[346210600,1734775904362,-151.0,0.0002079,2]
[346210601,1734775904371,-151.0,0.0002079,2]
[346210602,1734775904382,-151.0,0.0002079,2]
[346210603,1734775904391,-2005.535627,0.0002079,2]
[346210604,1734775904401,-219.023894,0.0002079,2]
[346210605,1734775904410,-219.023894,0.0002079,2]
[346210606,1734775904420,-151.0,0.0002079,2]
[346210607,1734775904430,-235.864776,0.0002079,2]
[346210608,1734775904440,-151.0,0.0002079,2]
[346210609,1734775904449,-151.0,0.0002079,2]
[346210610,1734775904458,-245.089358,0.0002079,2]
[346210611,1734775904469,-150.0,0.00020792,2]
[346210612,1734775904478,-214.84,0.00020793,2]
[346210613,1734775904489,-150.0,0.00020794,2]
[346210614,1734775904498,-1526.3625468,0.00020796,2]
[346210615,1734775904509,-150.0,0.00020799,2]
[346210616,1734775904518,-150.0,0.000208,2]
[346210617,1734775904528,-298.4170667,0.000208,2]
[346210618,1734775904540,-150.0,0.000208,2]
[346210619,1734775904549,-230.0,0.000208,2]
[346210620,1734775904559,-150.0,0.00020801,2]
[346210621,1734775904569,-150.0,0.00020803,2]
[346210622,1734775904579,-150.0,0.00020806,2]
[346210623,1734775904588,-150.0,0.00020807,2]
[346210624,1734775904598,-150.0,0.0002081,2]
[346210625,1734775904608,-1500.0,0.00020819,2]
[346210626,1734775904618,-1500.0,0.00020819,2]
[346210627,1734775904628,-500.0,0.0002082,2]
[346210628,1734775904638,-500.0,0.0002082,2]
[346210629,1734775904647,-500.0,0.0002082,2]
[346210630,1734775904656,-238.05752482,0.0002082,2]
[346210631,1734775904665,-300.0,0.0002082,2]
[346210632,1734775904675,-156.541348,0.00020821,2]
[346210633,1734775904684,-152.561789,0.00020821,2]
[346210634,1734775904693,-1315.92517,0.00020821,2]
[346210635,1734775904703,-2060.745603,0.00020821,2]
[346210636,1734775904712,-154.14021,0.00020821,2]
[346210637,1734775904722,-153.090772,0.00020821,2]
[346210638,1734775904731,-500.0,0.00020821,2]
[346210639,1734775904741,-182.632824,0.00020821,2]
[346210640,1734775904750,-390.34584846,0.00020821,2]
[346210641,1734775904760,-500.0,0.00020821,2]
[346210642,1734775904770,-500.0,0.00020821,2]
[346210643,1734775904779,-256.27449662,0.00020821,2]
[346210644,1734775904791,-151.0,0.00020821,2]
[346210645,1734775904801,-500.0,0.00020821,2]
[346210646,1734775904811,-500.0,0.00020821,2]
[346210647,1734775904820,-500.0,0.00020821,2]
[346210648,1734775904830,-500.0,0.00020821,2]
[346210649,1734775904839,-500.0,0.00020821,2]
[346210650,1734775904849,-500.0,0.00020821,2]
[346210651,1734775904858,-726.79,0.00020821,2]
[346210652,1734775904868,-532.67,0.00020821,2]
[346210653,1734775904878,-500.0,0.00020821,2]
[346210654,1734775904888,-500.0,0.00020821,2]
[346210655,1734775904897,-694.79,0.00020821,2]
[346210656,1734775904907,-156.280385,0.00020821,2]
[346210657,1734775904917,-151.0,0.00020821,2]
[346210658,1734775904927,-545.1,0.00020821,2]
[346210659,1734775904937,-500.0,0.00020821,2]
[346210660,1734775904947,-500.0,0.00020821,2]
[346210661,1734775904957,-500.0,0.00020821,2]
[346210662,1734775904966,-500.0,0.00020821,2]
[346210663,1734775904976,-500.0,0.00020821,2]
[346210664,1734775904985,-500.0,0.00020821,2]
[346210665,1734775904994,-500.0,0.00020821,2]
[346210666,1734775905004,-725.56,0.00020821,2]
[346210667,1734775905013,-500.0,0.00020821,2]
[346210668,1734775905022,-500.0,0.00020821,2]
[346210669,1734775905032,-628.09,0.00020821,2]
[346210670,1734775905042,-500.0,0.00020821,2]
[346210671,1734775905055,-151.0,0.00020821,2]
[346210672,1734775905064,-500.0,0.00020821,2]
[346210673,1734775905073,-500.0,0.00020821,2]
[346210674,1734775905083,-709.26,0.00020821,2]
[346210675,1734775905093,-500.0,0.00020821,2]
[346210676,1734775905103,-592.92120133,0.00020821,2]
[346210677,1734775905112,-709.06,0.00020821,2]
[346210678,1734775905123,-500.0,0.00020821,2]
[346210679,1734775905132,-832.53,0.00020821,2]
[346210680,1734775905141,-500.0,0.00020821,2]
[346210681,1734775905151,-500.0,0.00020821,2]
[346210682,1734775905160,-500.0,0.00020821,2]
[346210683,1734775905169,-500.0,0.00020821,2]
[346210684,1734775905179,-500.0,0.00020821,2]
[346210685,1734775905189,-500.0,0.00020821,2]
[346210686,1734775905198,-500.0,0.00020821,2]
[346210687,1734775905207,-500.0,0.00020821,2]
[346210688,1734775905216,-500.0,0.00020821,2]
[346210689,1734775905227,-500.0,0.00020821,2]
[346210690,1734775905237,-500.0,0.00020821,2]
[346210691,1734775905246,-500.0,0.00020821,2]
[346210692,1734775905255,-473.82079357,0.00020821,2]
[346210693,1734775905265,-500.0,0.00020821,2]
[346210694,1734775905274,-500.0,0.00020821,2]
[346210695,1734775905286,-345.29119465,0.00020821,2]
[346210696,1734775905296,-500.0,0.00020821,2]
[346210697,1734775905305,-500.0,0.00020821,2]
[346210698,1734775905314,-500.0,0.00020821,2]
[346210699,1734775905324,-500.0,0.00020821,2]
[346210700,1734775905333,-500.0,0.00020821,2]
[346210701,1734775905342,-500.0,0.00020821,2]
[346210702,1734775905351,-500.0,0.00020821,2]
[346210703,1734775905360,-500.0,0.00020821,2]
[346210704,1734775905369,-500.0,0.00020821,2]
[346210705,1734775905378,-500.0,0.00020821,2]
[346210706,1734775905388,-500.0,0.00020821,2]
[346210707,1734775905397,-500.0,0.00020821,2]
[346210708,1734775905407,-3009.64,0.00020821,2]
[346210709,1734775905417,-1290.83,0.00020821,2]
[346210710,1734775905426,-500.0,0.00020821,2]
[346210711,1734775905435,-500.0,0.00020821,2]
[346210712,1734775905445,-1763.28,0.00020821,2]
[346210713,1734775905454,-1110.5,0.00020821,2]
[346210714,1734775905463,-500.0,0.00020821,2]
[346210715,1734775905472,-500.0,0.00020821,2]
[346210716,1734775905482,-500.0,0.00020821,2]
[346210717,1734775905491,-554.22,0.00020821,2]
[346210718,1734775905500,-500.0,0.00020821,2]
[346210719,1734775905510,-500.0,0.00020821,2]
[346210720,1734775905519,-500.0,0.00020821,2]
[346210721,1734775905528,-1310.29,0.00020821,2]
[346210722,1734775905539,-500.0,0.00020821,2]
[346210723,1734775905548,-500.0,0.00020821,2]
[346210724,1734775905559,-782.42,0.00020821,2]
[346210725,1734775905568,-500.0,0.00020821,2]
[346210726,1734775905577,-500.0,0.00020821,2]
[346210727,1734775905586,-500.0,0.00020821,2]
[346210728,1734775905595,-500.0,0.00020821,2]
[346210729,1734775905604,-500.0,0.00020821,2]
[346210730,1734775905614,-500.0,0.00020821,2]
[346210731,1734775905623,-500.0,0.00020821,2]
[346210732,1734775905632,-500.0,0.00020821,2]
[346210733,1734775905641,-1344.59,0.00020821,2]
[346210734,1734775905650,-500.0,0.00020821,2]
[346210735,1734775905659,-500.0,0.00020821,2]
[346210736,1734775905668,-500.0,0.00020821,2]
[346210737,1734775905678,-500.0,0.00020821,2]
[346210738,1734775905688,-500.0,0.00020821,2]
[346210739,1734775905697,-192.24294127,0.00020821,2]
[346210740,1734775905706,-500.0,0.00020821,2]
[346210741,1734775905715,-500.0,0.00020821,2]
[346210742,1734775905724,-500.0,0.00020821,2]
[346210743,1734775905733,-997.25,0.00020821,2]
[346210744,1734775905743,-500.0,0.00020821,2]
[346210745,1734775905751,-681.25,0.00020821,2]
[346210746,1734775905761,-2209.2,0.00020821,2]
[346210747,1734775905771,-600.53,0.00020821,2]
[346210748,1734775905780,-500.0,0.00020821,2]
[346210749,1734775905790,-500.0,0.00020821,2]
[346210750,1734775905799,-500.0,0.00020821,2]
[346210751,1734775905809,-500.0,0.00020821,2]
[346210752,1734775905818,-500.0,0.00020821,2]
[346210753,1734775905827,-1052.88,0.00020821,2]
[346210754,1734775905836,-500.0,0.00020821,2]
[346210755,1734775905845,-500.0,0.00020821,2]
[346210756,1734775905854,-500.0,0.00020821,2]
[346210757,1734775905863,-500.0,0.00020821,2]
[346210758,1734775905873,-1457.83,0.00020821,2]
[346210759,1734775905882,-500.0,0.00020821,2]
[346210760,1734775905892,-505.69838214,0.00020821,2]
[346210761,1734775905902,-828.45,0.00020821,2]
[346210762,1734775905987,-1146.14,0.00020821,2]
[346210763,1734775905997,-500.0,0.00020821,2]
[346210764,1734775906006,-500.0,0.00020821,2]
[346210765,1734775906015,-1250.39,0.00020821,2]
[346210766,1734775906024,-500.0,0.00020821,2]
[346210767,1734775906034,-500.0,0.00020821,2]
[346210768,1734775906044,-500.0,0.00020821,2]
[346210769,1734775906056,-500.0,0.00020821,2]
[346210770,1734775906066,-500.0,0.00020821,2]
[346210771,1734775906075,-1419.2,0.00020821,2]
[346210772,1734775906084,-758.56,0.00020821,2]
[346210773,1734775906095,-500.0,0.00020821,2]
[346210774,1734775906103,-500.0,0.00020821,2]
[346210775,1734775906114,-639.25,0.00020821,2]
[346210776,1734775906125,-635.85,0.00020821,2]
[346210777,1734775906135,-500.0,0.00020821,2]
[346210778,1734775906144,-500.0,0.00020821,2]
[346210779,1734775906154,-500.0,0.00020821,2]
[346210780,1734775906163,-756.25,0.00020821,2]
[346210781,1734775906172,-656.52,0.00020821,2]
[346210782,1734775906182,-500.0,0.00020821,2]
[346210783,1734775906191,-500.0,0.00020821,2]
[346210784,1734775906201,-500.0,0.00020821,2]
[346210785,1734775906210,-500.0,0.00020821,2]
[346210786,1734775906220,-500.0,0.00020821,2]
[346210787,1734775906230,-500.0,0.00020821,2]
[346210788,1734775906239,-679.69,0.00020821,2]
[346210789,1734775906248,-694.71,0.00020821,2]
[346210790,1734775906257,-500.0,0.00020821,2]
[346210791,1734775906266,-500.0,0.00020821,2]
[346210792,1734775906275,-500.0,0.00020821,2]
[346210793,1734775906285,-500.0,0.00020821,2]
[346210794,1734775906294,-696.96,0.00020821,2]
[346210795,1734775906304,-500.0,0.00020821,2]
[346210796,1734775906313,-500.0,0.00020821,2]
[346210797,1734775906322,-529.72,0.00020821,2]
[346210798,1734775906332,-500.0,0.00020821,2]
[346210799,1734775906342,-500.0,0.00020821,2]
[346210800,1734775906351,-500.0,0.00020821,2]
[346210801,1734775906361,-500.0,0.00020821,2]
[346210802,1734775906370,-1305.68,0.00020821,2]
[346210803,1734775906379,-845.31,0.00020821,2]
[346210804,1734775906389,-853.8,0.00020821,2]
[346210805,1734775906399,-1048.63,0.00020821,2]
[346210806,1734775906407,-1477.89,0.00020821,2]
[346210807,1734775906417,-500.0,0.00020821,2]
[346210808,1734775906427,-335.28537506,0.00020821,2]
[346210809,1734775906438,-1084.07,0.00020821,2]
[346210810,1734775906448,-500.0,0.00020821,2]
[346210811,1734775906457,-788.48,0.00020821,2]
[346210812,1734775906467,-500.0,0.00020821,2]
[346210813,1734775906476,-743.94,0.00020821,2]
[346210814,1734775906486,-1099.89,0.00020821,2]
[346210815,1734775906497,-325.46793745,0.00020821,2]
[346210816,1734775906507,-500.0,0.00020821,2]
[346210817,1734775906517,-500.0,0.00020821,2]
[346210818,1734775906526,-500.0,0.00020821,2]
[346210819,1734775906537,-500.0,0.00020821,2]
[346210820,1734775906547,-780.67,0.00020821,2]
[346210821,1734775906556,-500.0,0.00020821,2]
[346210822,1734775906566,-500.0,0.00020821,2]
[346210823,1734775906576,-569.32491562,0.00020821,2]
[346210824,1734775906585,-500.0,0.00020821,2]
[346210825,1734775906594,-1161.79,0.00020821,2]
[346210826,1734775906603,-532.5,0.00020821,2]
[346210827,1734775906613,-500.0,0.00020821,2]
[346210828,1734775906622,-515.71,0.00020821,2]
[346210829,1734775906632,-500.0,0.00020821,2]
[346210830,1734775906641,-707.57,0.00020821,2]
[346210831,1734775906651,-500.0,0.00020821,2]
[346210832,1734775906660,-427.10568797,0.00020821,2]
[346210833,1734775906670,-549.28,0.00020821,2]
[346210834,1734775906679,-500.0,0.00020821,2]
[346210835,1734775906688,-500.0,0.00020821,2]
[346210836,1734775906697,-500.0,0.00020821,2]
[346210837,1734775906707,-500.0,0.00020821,2]
[346210838,1734775906716,-514.37,0.00020821,2]
[346210839,1734775906726,-612.84,0.00020821,2]
[346210840,1734775906735,-639.17,0.00020821,2]
[346210841,1734775906745,-500.0,0.00020821,2]
[346210842,1734775906754,-500.0,0.00020821,2]
[346210843,1734775906764,-500.0,0.00020821,2]
[346210844,1734775906773,-500.0,0.00020821,2]
[346210845,1734775906783,-500.0,0.00020821,2]
[346210846,1734775906793,-721.82,0.00020821,2]
[346210847,1734775906802,-500.0,0.00020821,2]
[346210848,1734775906811,-500.0,0.00020821,2]
[346210849,1734775906820,-500.0,0.00020821,2]
[346210850,1734775906830,-500.0,0.00020821,2]
[346210851,1734775906840,-1097.82,0.00020821,2]
[346210852,1734775906849,-1102.35,0.00020821,2]
[346210853,1734775906859,-500.0,0.00020821,2]
[346210854,1734775906869,-500.0,0.00020821,2]
[346210855,1734775906879,-702.98,0.00020821,2]
[346210856,1734775906888,-500.0,0.00020821,2]
[346210857,1734775906899,-517.71,0.00020821,2]
[346210858,1734775906909,-500.0,0.00020821,2]
[346210859,1734775906918,-911.98,0.00020821,2]
[346210860,1734775906927,-500.0,0.00020821,2]
[346210861,1734775906937,-500.0,0.00020821,2]
[346210862,1734775906947,-500.0,0.00020821,2]
[346210863,1734775906956,-904.16,0.00020821,2]
[346210864,1734775906966,-516.66,0.00020821,2]
[346210865,1734775906975,-500.0,0.00020821,2]
[346210866,1734775906985,-500.0,0.00020821,2]
[346210867,1734775906994,-500.0,0.00020821,2]
[346210868,1734775907004,-718.98,0.00020821,2]
[346210869,1734775907013,-881.76,0.00020821,2]
[346210870,1734775907023,-500.0,0.00020821,2]
[346210871,1734775907032,-500.0,0.00020821,2]
[346210872,1734775907044,-500.0,0.00020821,2]
[346210873,1734775907055,-500.0,0.00020821,2]
[346210874,1734775907067,-1196.0,0.00020821,2]
[346210875,1734775907076,-604.96,0.00020821,2]
[346210876,1734775907086,-500.0,0.00020821,2]
[346210877,1734775907097,-500.0,0.00020821,2]
[346210878,1734775907106,-500.0,0.00020821,2]
[346210879,1734775907115,-630.9,0.00020821,2]
[346210880,1734775907125,-500.0,0.00020821,2]
[346210881,1734775907135,-500.0,0.00020821,2]
[346210882,1734775907144,-543.56928584,0.00020821,2]
[346210883,1734775907154,-500.0,0.00020821,2]
[346210884,1734775907163,-500.0,0.00020821,2]
[346210885,1734775907172,-671.72,0.00020821,2]
[346210886,1734775907181,-500.0,0.00020821,2]
[346210887,1734775907191,-500.0,0.00020821,2]
[346210888,1734775907200,-836.17,0.00020821,2]
[346210889,1734775907209,-500.0,0.00020821,2]
[346210890,1734775907219,-505.85623494,0.00020821,2]
[346210891,1734775907230,-168.4602183,0.00020821,2]
[346210892,1734775907240,-954.09,0.00020821,2]
[346210893,1734775907249,-500.0,0.00020821,2]
[346210894,1734775907259,-500.0,0.00020821,2]
[346210895,1734775907268,-500.0,0.00020821,2]
[346210896,1734775907278,-500.0,0.00020821,2]
[346210897,1734775907288,-500.0,0.00020821,2]
[346210898,1734775907298,-500.0,0.00020821,2]
[346210899,1734775907307,-509.68,0.00020821,2]
[346210900,1734775907317,-796.49,0.00020821,2]
[346210901,1734775907327,-500.0,0.00020821,2]
[346210902,1734775907336,-200.0,0.00020821,2]
[346210903,1734775907347,-613.54,0.00020821,2]
[346210904,1734775907356,-500.0,0.00020821,2]
[346210905,1734775907365,-500.0,0.00020821,2]
[346210906,1734775907374,-500.0,0.00020821,2]
[346210907,1734775907385,-1107.03,0.00020821,2]
[346210908,1734775907394,-632.72,0.00020821,2]
[346210909,1734775907403,-500.0,0.00020821,2]
[346210910,1734775907412,-560.9,0.00020821,2]
[346210911,1734775907422,-500.0,0.00020821,2]
[346210912,1734775907431,-1187.28,0.00020821,2]
[346210913,1734775907441,-238.02034892,0.00020821,2]
[346210914,1734775907449,-500.0,0.00020821,2]
[346210915,1734775907459,-299.82814214,0.00020821,2]
[346210916,1734775907468,-500.0,0.00020821,2]
[346210917,1734775907477,-500.0,0.00020821,2]
[346210918,1734775907486,-886.49,0.00020821,2]
[346210919,1734775907496,-500.0,0.00020821,2]
[346210920,1734775907505,-935.47,0.00020821,2]
[346210921,1734775907514,-500.0,0.00020821,2]
[346210922,1734775907524,-500.0,0.00020821,2]
[346210923,1734775907533,-583.48,0.00020821,2]
[346210924,1734775907544,-500.0,0.00020821,2]
[346210925,1734775907553,-1195.31,0.00020821,2]
[346210926,1734775907563,-711.4,0.00020821,2]
[346210927,1734775907572,-500.0,0.00020821,2]
[346210928,1734775907581,-500.0,0.00020821,2]
[346210929,1734775907590,-868.6,0.00020821,2]
[346210930,1734775907600,-500.0,0.00020821,2]
[346210931,1734775907610,-556.56,0.00020821,2]
[346210932,1734775907618,-500.0,0.00020821,2]
[346210933,1734775907627,-500.0,0.00020821,2]
[346210934,1734775907637,-500.0,0.00020821,2]
[346210935,1734775907646,-1259.03,0.00020821,2]
[346210936,1734775907654,-566.68,0.00020821,2]
[346210937,1734775907664,-500.0,0.00020821,2]
[346210938,1734775907673,-526.17,0.00020821,2]
[346210939,1734775907681,-500.0,0.00020821,2]
[346210940,1734775907691,-688.11,0.00020821,2]
[346210941,1734775907700,-500.0,0.00020821,2]
[346210942,1734775907709,-982.15,0.00020821,2]
[346210943,1734775907719,-982.5,0.00020821,2]
[346210944,1734775907728,-500.0,0.00020821,2]
[346210945,1734775907737,-500.0,0.00020821,2]
[346210946,1734775907746,-595.21519789,0.00020821,2]
[346210947,1734775907756,-700.81,0.00020821,2]
[346210948,1734775907766,-500.0,0.00020821,2]
[346210949,1734775907775,-500.0,0.00020821,2]
[346210950,1734775907786,-500.0,0.00020821,2]
[346210951,1734775907795,-908.4,0.00020821,2]
[346210952,1734775907804,-500.0,0.00020821,2]
[346210953,1734775907814,-500.0,0.00020821,2]
[346210954,1734775907823,-970.68,0.00020821,2]
[346210955,1734775907832,-1203.95,0.00020821,2]
[346210956,1734775907841,-500.0,0.00020821,2]
[346210957,1734775907851,-500.0,0.00020821,2]
[346210958,1734775907860,-500.0,0.00020821,2]
[346210959,1734775907869,-604.93,0.00020821,2]
[346210960,1734775907878,-1020.15,0.00020821,2]
[346210961,1734775907887,-500.0,0.00020821,2]
[346210962,1734775907896,-500.0,0.00020821,2]
[346210963,1734775907906,-500.0,0.00020821,2]
[346210964,1734775907915,-977.35,0.00020821,2]
[346210965,1734775907924,-500.0,0.00020821,2]
[346210966,1734775907933,-500.0,0.00020821,2]
[346210967,1734775907943,-588.29,0.00020821,2]
[346210968,1734775907952,-2100.81,0.00020821,2]
[346210969,1734775907961,-500.0,0.00020821,2]
[346210970,1734775907970,-1137.46,0.00020821,2]
[346210971,1734775907979,-500.0,0.00020821,2]
[346210972,1734775907988,-597.89606489,0.00020821,2]
[346210973,1734775907997,-500.0,0.00020821,2]
[346210974,1734775908007,-954.46,0.00020821,2]
[346210975,1734775908017,-500.0,0.00020821,2]
[346210976,1734775908026,-500.0,0.00020821,2]
[346210977,1734775908036,-151.0,0.00020821,2]
[346210978,1734775908047,-159.090281,0.00020821,2]
[346210979,1734775908060,-500.0,0.00020821,2]
[346210980,1734775908069,-500.0,0.00020821,2]
[346210981,1734775908079,-588.07,0.00020821,2]
[346210982,1734775908088,-865.9,0.00020821,2]
[346210983,1734775908098,-151.0,0.00020821,2]
[346210984,1734775908107,-159.090281,0.00020821,2]
[346210985,1734775908116,-500.0,0.00020821,2]
[346210986,1734775908128,-500.0,0.00020821,2]
[346210987,1734775908137,-1839.2,0.00020821,2]
[346210988,1734775908147,-500.0,0.00020821,2]
[346210989,1734775908156,-841.64,0.00020821,2]
[346210990,1734775908166,-500.0,0.00020821,2]
[346210991,1734775908176,-500.0,0.00020821,2]
[346210992,1734775908186,-500.0,0.00020821,2]
[346210993,1734775908197,-753.67,0.00020821,2]
[346210994,1734775908207,-500.0,0.00020821,2]
[346210995,1734775908216,-1434.78,0.00020821,2]
[346210996,1734775908227,-500.0,0.00020821,2]
[346210997,1734775908236,-500.0,0.00020821,2]
[346210998,1734775908246,-270.74926587,0.00020821,2]
[346210999,1734775908255,-500.0,0.00020821,2]
[346211000,1734775908264,-1084.441464,0.00020821,2]
[346211001,1734775908274,-500.0,0.00020821,2]
[346211002,1734775908283,-500.0,0.00020821,2]
[346211003,1734775908296,-916.41,0.00020821,2]
[346211004,1734775908308,-318.33759147,0.00020821,2]
[346211005,1734775908317,-500.0,0.00020821,2]
[346211006,1734775908326,-1084.441464,0.00020821,2]
[346211007,1734775908336,-1229.82,0.00020821,2]
[346211008,1734775908346,-500.0,0.00020821,2]
[346211009,1734775908356,-538.68,0.00020821,2]
[346211010,1734775908366,-500.0,0.00020821,2]
[346211011,1734775908376,-2061.42,0.00020821,3]
[346211012,1734775908386,-1289.82,0.00020821,2]
[346211013,1734775908396,-502.20491314,0.00020821,2]
[346211014,1734775908406,-500.0,0.00020821,2]
[346211015,1734775908415,-3068.56,0.00020821,2]
[346211016,1734775908424,-816.83,0.00020821,2]
[346211017,1734775908434,-1681.21,0.00020821,2]
[346211018,1734775908443,-500.0,0.00020821,2]
[346211019,1734775908452,-515.01,0.00020821,2]
[346211020,1734775908462,-500.0,0.00020821,2]
[346211021,1734775908471,-564.73,0.00020821,2]
[346211022,1734775908480,-821.19,0.00020821,2]
[346211023,1734775908490,-500.0,0.00020821,2]
[346211024,1734775908499,-503.14,0.00020821,2]
[346211025,1734775908509,-500.0,0.00020821,2]
[346211026,1734775908519,-500.0,0.00020821,2]
[346211027,1734775908528,-500.0,0.00020821,2]
[346211028,1734775908542,-500.0,0.00020821,2]
[346211029,1734775908552,-500.0,0.00020821,2]
[346211030,1734775908562,-500.0,0.00020821,2]
[346211031,1734775908572,-528.97,0.00020821,2]
[346211032,1734775908581,-1802.69,0.00020821,2]
[346211033,1734775908591,-500.0,0.00020821,2]
[346211034,1734775908601,-500.0,0.00020821,2]
[346211035,1734775908611,-1428.18,0.00020821,2]
[346211036,1734775908620,-500.0,0.00020821,2]
[346211037,1734775908630,-1530.46,0.00020821,2]
[346211038,1734775908640,-517.49,0.00020821,2]
[346211039,1734775908650,-500.0,0.00020821,2]
[346211040,1734775908660,-2857.77,0.00020821,2]
[346211041,1734775908669,-1035.1,0.00020821,2]
[346211042,1734775908679,-500.0,0.00020821,2]
[346211043,1734775908688,-5744.66,0.00020821,2]
[346211044,1734775908698,-3645.89,0.00020821,2]
[346211045,1734775908707,-500.0,0.00020821,2]
[346211046,1734775908716,-7770.52,0.00020821,2]
[346211047,1734775908726,-5825.61,0.00020821,2]
[346211048,1734775908735,-500.0,0.00020821,2]
[346211049,1734775908745,-500.0,0.00020821,2]
[346211050,1734775908755,-500.0,0.00020821,2]
[346211051,1734775908765,-676.76,0.00020821,2]
[346211052,1734775908775,-655.72,0.00020821,2]
[346211053,1734775908787,-500.0,0.00020821,2]
[346211054,1734775908799,-6344.44,0.00020821,2]
[346211055,1734775908808,-500.0,0.00020821,2]
[346211056,1734775908818,-515.28,0.00020821,2]
[346211057,1734775908828,-2388.26,0.00020821,2]
[346211058,1734775908837,-1144.61,0.00020821,2]
[346211059,1734775908846,-500.0,0.00020821,2]
[346211060,1734775908856,-501.79,0.00020821,2]
[346211061,1734775908865,-5318.41,0.00020821,2]
[346211062,1734775908875,-500.0,0.00020821,2]
[346211063,1734775908884,-1263.34,0.00020821,2]
[346211064,1734775908893,-876.73,0.00020821,2]
[346211065,1734775908902,-500.0,0.00020821,2]
[346211066,1734775908911,-935.87,0.00020821,2]
[346211067,1734775908921,-2971.78,0.00020821,2]
[346211068,1734775908930,-500.0,0.00020821,2]
[346211069,1734775908939,-6748.31,0.00020821,2]
[346211070,1734775908948,-500.0,0.00020821,2]
[346211071,1734775908957,-1217.48,0.00020821,2]
[346211072,1734775908967,-3504.24,0.00020821,2]
[346211073,1734775908977,-1129.8,0.00020821,2]
[346211074,1734775908987,-1058.32,0.00020821,2]
[346211075,1734775908996,-500.0,0.00020821,2]
[346211076,1734775909005,-500.0,0.00020821,2]
[346211077,1734775909015,-3097.42,0.00020821,2]
[346211078,1734775909025,-500.0,0.00020821,2]
[346211079,1734775909034,-1490.71,0.00020821,2]
[346211080,1734775909045,-154.605133,0.00020821,2]
[346211081,1734775909059,-500.0,0.00020821,2]
[346211082,1734775909069,-151.0,0.00020821,2]
[346211083,1734775909078,-676.92,0.00020821,2]